Cogmind - Beta 9.6 @@@ ROGUE MODE // 2020.05.11 @ 13:38:43 Player: Teratos Result: Self-destructed Performance ------------- Evolutions (2) 1000 Regions Visited (7) 1400 Robots Destroyed (53) 265 Value Destroyed (1055) 1055 Prototype IDs (11) 220 Alien Tech Used (0) 0 Bonus (505) 505 TOTAL SCORE: 4445 Bonus ------- Follower Combat Kills 305 Entered Garrisons 200 Cogmind --------- Core Integrity 197/550 Matter 300/300 Energy 31/100 System Corruption 1% Temperature Cool (0) Movement Flying (34) Location -8/Garrison Parts ------- > --- POWER (2) -------- (None) > --- PROPULSION (2) --- Improved Flight Unit Cesium-ion Thruster > --- UTILITY (5) ------ Weight Redist. System Advanced Visual Processing Unit Transmission Jammer > --- WEAPON (2) ------- (None) > --- INVENTORY (4) ---- Cesium-ion Thruster Improved Heat Sink Advanced Sensor Array Peak State ------------ > --- POWER ------------ Light Ion Engine Light Ion Engine > --- PROPULSION ------- Cesium-ion Thruster Cesium-ion Thruster > --- UTILITY ---------- Improved Heat Sink Weight Redist. System Advanced Visual Processing Unit Advanced Sensor Array Experimental Targeting Computer > --- WEAPON ----------- Heavy EM Shotgun Cooled Plasma Cannon > --- INVENTORY -------- Light Ion Engine Light Ion Engine [Rating: 35] Favorites ----------- Power Light Ion Engine Engine Light Ion Engine Power Core Light Nuclear Core Propulsion Light Treads Treads Light Treads Wheel Compact Wheel Flight Unit Cesium-ion Thruster Utility Weight Redist. System Device Weight Redist. System Storage Small Matter Pod Processor Improved Terrain Scan Processor Weapon Light Assault Rifle Energy Gun Beam Rifle Energy Cannon Cooled Plasma Cannon Ballistic Gun Light Assault Rifle Launcher Grenade Launcher Special Weapon Welding Torch Slashing Weapon Scythe Build | -11 -10 -10 -10 -9 -8 -8 -8 ------- Run | Scr Mat Min Exi Min Mat Sto Gar Slots Evolved 4 | . . . . . 4 . . Power 1 | . . . . . 1 . . Propulsion . | . . . . . . . . Utility 3 | . . . . . 3 . . Weapon . | . . . . . . . . Parts Attached 109 | 6 1 1 3 6 3 89 . Power 20 | 1 . . 1 1 . 17 . Engine 16 | 1 . . 1 1 . 13 . Core 4 | . . . . . . 4 . Reactor . | . . . . . . . . Propulsion 19 | 2 . . . . 1 16 . Treads 10 | 2 . . . . 1 7 . Leg . | . . . . . . . . Wheel 2 | . . . . . . 2 . Hover . | . . . . . . . . Flight 7 | . . . . . . 7 . Utility 28 | . . . . 4 2 22 . Device 21 | . . . . 2 1 18 . Storage 3 | . . . . 2 . 1 . Processor 4 | . . . . . 1 3 . Hackware . | . . . . . . . . Protection . | . . . . . . . . Artifact . | . . . . . . . . Weapon 42 | 3 1 1 2 1 . 34 . Energy Gun 12 | 1 . . . . . 11 . Energy Cannon 5 | . . . . . . 5 . Ballistic Gun 15 | 2 . 1 1 . . 11 . Ballistic Cannon . | . . . . . . . . Launcher 5 | . 1 . 1 1 . 2 . Special Weapon 1 | . . . . . . 1 . Impact Weapon . | . . . . . . . . Slashing Weapon 4 | . . . . . . 4 . Piercing Weapon . | . . . . . . . . Special Melee Weapon . | . . . . . . . . Unidentified Prototypes 11 | . . . . . . 11 . Parts Lost 14 | . . . . . 2 9 3 Power 5 | . . . . . . 3 2 Propulsion 3 | . . . . . . 3 . Utility 3 | . . . . . 1 2 . Weapon 3 | . . . . . 1 1 1 Highest Loss Streak 3 | . . . . . 2 3 3 Average Slot Usage (%) 79 | . 71 71 70 87 70 82 81 Engine 13 | . 14 14 13 14 9 12 15 Core 1 | . . . . . . 3 . Treads 17 | . 28 28 28 28 18 5 . Wheel 1 | . . . . . . 2 . Flight 4 | . . . . . . 9 18 Device 14 | . . . . 12 17 24 30 Processor 5 | . . . . . 8 11 9 Energy Gun 1 | . . . . . . 4 . Energy Cannon 1 | . . . . . . 3 9 Ballistic Gun 14 | . 16 26 28 26 9 3 . Launcher 1 | . 11 2 . 1 8 . . Naked Turns . | . . . . . . . . Heaviest Build 25 | 5 7 7 5 12 12 25 17 Greatest Support 48 | 40 40 40 40 40 42 48 18 Greatest Overweight (x) 3 | . . . . . . 3 . Average Overweight (x) . | . . . . . . . . Largest Inventory Capacity 6 | 4 4 4 4 4 4 6 4 Average Capacity 4 | 4 4 4 4 4 4 4 4 Most Carried 6 | 1 1 1 2 4 4 6 3 Average Carried 2 | . . 1 1 3 2 2 1 Final Capacity 4 | 4 4 4 4 4 4 4 4 Final Carried 3 | . 1 1 2 3 2 1 3 Class Distribution -------------------- 75% | Mutant 20% | Scavenger-Mutant Dominant Class ---------------- Mutant | -10/Materials Mutant | -10/Mines Mutant | -10/Exiles Mutant | -9/Mines Skirmisher | -8/Materials Mutant | -8/Storage Mutant | -8/Garrison Resources | -11 -10 -10 -10 -9 -8 -8 -8 ----------- Run | Scr Mat Min Exi Min Mat Sto Gar Matter Collected 1856 | 203 91 . . 307 61 1194 . Remotely 147 | . . . . . . 147 . Salvage Created 2235 | . 31 . . 362 178 1575 89 Parts 136 | . 5 . . 20 10 96 5 Haulers Intercepted 6 | . 1 . . . 1 4 . Recyclers Shooed 5 | . . . . 2 2 1 . Parts Field Recycled . | . . . . . . . . Retrieved Matter . | . . . . . . . . Parts Self-Destructed . | . . . . . . . . Prevented . | . . . . . . . . Kills | -11 -10 -10 -10 -9 -8 -8 -8 ------- Run | Scr Mat Min Exi Min Mat Sto Gar Combat Hostiles Destroyed 22 | . . . . . 1 19 2 Melee 3 | . . . . . . 3 . Guns 15 | . . . . . . 15 . Cannons 2 | . . . . . . . 2 AOE 2 | . . . . . 1 1 . Classes Destroyed 9 | . 3 . . 2 1 3 . Worker 9 | . 1 . . 5 1 2 . Builder 4 | . 1 . . . . 3 . Tunneler 3 | . . . . 3 . . . Hauler 6 | . 1 . . . 1 4 . Recycler 8 | . . . . 3 1 4 . Watcher 1 | . . . . . . 1 . Swarmer 4 | . . . . . . 4 . Grunt 10 | . . . . . . 8 2 Sentry 8 | . . . . . 1 7 . Best Kill Streak 6 | . 2 . . 2 2 6 2 Combat Bots Only 6 | . . . . . 1 6 2 Max Kills in Single Turn 2 | . 1 . . 2 2 1 1 Gunslinging . | . . . . . . . . Exploded 1 | . . . . . 1 1 . Melee 1 | . . . . . . 1 . Uniques/NPCs Destroyed . | . . . . . . . . Combat | -11 -10 -10 -10 -9 -8 -8 -8 -------- Run | Scr Mat Min Exi Min Mat Sto Gar Damage Taken 1831 | . 89 . . . 243 1172 327 Core 353 | . . . . . 15 224 114 Absorbed by Shields . | . . . . . . . . Core Remaining (%) 100 | 100 . . . 100 . . . Volleys Fired 238 | . 6 . 2 46 13 163 8 Largest 2 | . 2 . 1 2 2 2 1 Hottest 121 | . 50 . 30 40 53 121 35 Shots Fired 377 | . 12 . 2 92 19 244 8 Gun 314 | . 6 . . 92 13 203 . Cannon 36 | . . . . . . 28 8 Launcher 15 | . 6 . 2 . 6 1 . Special 12 | . . . . . . 12 . Kinetic 238 | . 6 . . 92 13 127 . Thermal 105 | . . . . . . 97 8 Explosive 14 | . 6 . 2 . 6 . . Electromagnetic 20 | . . . . . . 20 . Robot Hit Streak 16 | . 1 . . 7 9 16 2 Robot Miss Streak 3 | . 1 . . 3 3 3 1 Penetration Max . | . . . . . . . . Secondary Targets 2 | . . . . . . 2 . Max Gunslinging Chain 1 | . . . . . . 1 . Shots Hit Robots 195 | . 3 . . 54 12 122 4 Core Hits 96 | . 7 . . 25 9 53 2 Critical Hits 2 | . . . . 2 . . . Critical Kills 2 | . . . . 2 . . . Critical Parts Destroyed . | . . . . . . . . Melee Attacks 11 | . . . . . . 11 . Impact . | . . . . . . . . Slashing 11 | . . . . . . 11 . Piercing . | . . . . . . . . Sneak Attacks . | . . . . . . . . Combat Hostiles . | . . . . . . . . Follow-up Attacks 2 | . . . . . . 2 . Damage Inflicted 3375 | . 202 . . 438 357 2176 202 Guns 2205 | . . . . 432 75 1698 . Cannons 266 | . . . . . . 64 202 Explosions 621 | . 200 . . . 282 139 . Melee 275 | . . . . . . 275 . Ramming 8 | . 2 . . 6 . . . Kinetic 1378 | . . . . 432 75 871 . Thermal 997 | . . . . . . 795 202 Explosive 482 | . 200 . . . 282 . . Electromagnetic 235 | . . . . . . 235 . Impact . | . . . . . . . . Slashing 275 | . . . . . . 275 . Piercing . | . . . . . . . . Highest Corruption 1 | . . . . . . 1 1 Average Corruption 1 | . . . . . . 1 1 Corruption Purged . | . . . . . . . . Effects 3 | . . . . . . 2 1 Message Errors 3 | . . . . . . 2 1 Overload Shots . | . . . . . . . . Overflow Damage . | . . . . . . . . Projectiles . | . . . . . . . . Explosions . | . . . . . . . . Melee . | . . . . . . . . Knockbacks . | . . . . . . . . Impact . | . . . . . . . . Kinetic . | . . . . . . . . Secondary . | . . . . . . . . Self-Inflicted Damage 93 | . . . . . . 93 . Shots 3 | . . . . . . 3 . Rammed 2 | . 1 . . 1 . . . Targets Rammed 2 | . 1 . . 1 . . . Kicked . | . . . . . . . . Crushed . | . . . . . . . . Highest Temperature 94 | . 20 . . . 27 94 11 Average Temperature 29 | . 9 . . . 12 31 7 Received Heat Transfer 702 | . 54 . . . 108 351 189 Siege Activations . | . . . . . . . . Robots Corrupted . | . . . . . . . . Combat Hostiles . | . . . . . . . . Parts Fried . | . . . . . . . . Impact Corruptions . | . . . . . . . . Robots Melted . | . . . . . . . . Combat Hostiles . | . . . . . . . . Parts Melted 3 | . . . . . . 3 . Heat Transferred 2080 | . . . . . . 1780 300 Parts Sabotaged . | . . . . . . . . Parts Stolen . | . . . . . . . . Parts Stripped . | . . . . . . . . Power Chain Reactions 2 | . . . . . . 2 . Missiles Intercepted . | . . . . . . . . Alert | -11 -10 -10 -10 -9 -8 -8 -8 ------- Run | Scr Mat Min Exi Min Mat Sto Gar Peak Influence 448 | . 47 18 . 35 116 448 268 Average Influence 141 | . 12 18 . 14 31 223 259 Maximum Alert Level 2 | . . . . . . 2 1 Low Security (%) 63 | 100 100 100 . 100 100 41 . Level 1 28 | . . . . . . 44 100 Level 2 7 | . . . . . . 13 . Level 3 . | . . . . . . . . Level 4 . | . . . . . . . . Level 5 . | . . . . . . . . High Security . | . . . . . . . . Max Security . | . . . . . . . . Squads Dispatched 5 | . . . . . 1 4 . Investigation 2 | . . . . . . 2 . Extermination . | . . . . . . . . Reinforcement 3 | . . . . . 1 2 . Assault . | . . . . . . . . Garrison . | . . . . . . . . Intercept . | . . . . . . . . Construction Impeded 2 | . . . . . 1 1 . Haulers Reinforced . | . . . . . . . . Stealth | -11 -10 -10 -10 -9 -8 -8 -8 --------- Run | Scr Mat Min Exi Min Mat Sto Gar Distress Signals 6 | . 2 . . . . 4 . Communications Jammed 5 | . . . . . . 5 . Distress Signals . | . . . . . . . . Times Spotted 65 | . 5 . . . 4 48 8 Peak Tracking Total 6 | . 2 . . . 3 5 6 Tactical Retreats 8 | . 1 . . . . 7 . Traps | -11 -10 -10 -10 -9 -8 -8 -8 ------- Run | Scr Mat Min Exi Min Mat Sto Gar Traps Triggered 7 | . . . . . . 7 . Indirectly . | . . . . . . . . Trap Hack Attempts . | . . . . . . . . Triggered . | . . . . . . . . Disarmed . | . . . . . . . . Reprogrammed 1 | . . . . . . 1 . Reused . | . . . . . . . . Traps Extracted . | . . . . . . . . Installed . | . . . . . . . . Triggered 1 | . . . . 1 . . . Machines | -11 -10 -10 -10 -9 -8 -8 -8 ---------- Run | Scr Mat Min Exi Min Mat Sto Gar Machines Disabled 5 | . 1 . . . 1 3 . Max in Single Turn 1 | . 1 . . . 1 1 . Machines Sabotaged . | . . . . . . . . Garrisons Compromised . | . . . . . . . . Overloaded Fab Kills . | . . . . . . . . Fab Network Shutdowns . | . . . . . . . . Hacking | -11 -10 -10 -10 -9 -8 -8 -8 --------- Run | Scr Mat Min Exi Min Mat Sto Gar Machines Accessed 20 | . . . 4 1 1 14 . Terminals 13 | . . . . 1 1 11 . Fabricators . | . . . . . . . . Repair Stations 2 | . . . . . . 2 . Recycling Units . | . . . . . . . . Scanalyzers . | . . . . . . . . Garrison Access 1 | . . . . . . 1 . Total Hacks 45 | . . . 6 1 1 37 . Successful 34 | . . . 6 1 1 26 . Failed 11 | . . . . . . 11 . Catastrophic 4 | . . . . . . 4 . Database Lockouts . | . . . . . . . . Manual 1 | . . . 1 . . . . Terminals 30 | . . . . 1 1 28 . Fabricators . | . . . . . . . . Repair Stations 7 | . . . . . . 7 . Recycling Units . | . . . . . . . . Scanalyzers . | . . . . . . . . Garrison Access 2 | . . . . . . 2 . Terminal Hacks 27 | . . . 6 1 1 19 . Record 11 | . . . 6 1 1 3 . Part Schematic 1 | . . . . . . 1 . Open Door 5 | . . . . . . 5 . Emergency Access Points 1 | . . . . . . 1 . Terminal Index 1 | . . . . . . 1 . Reprogram Traps 1 | . . . . . . 1 . Transport Status 1 | . . . . . . 1 . Recall Investigation 1 | . . . . . . 1 . Recall Reinforcements 1 | . . . . . . 1 . Hauler Manifests 1 | . . . . . . 1 . Zone Layout 3 | . . . . . . 3 . Fabricator Hacks . | . . . . . . . . Repair Station Hacks 5 | . . . . . . 5 . Scan Component 3 | . . . . . . 3 . Repair 2 | . . . . . . 2 . Recycling Unit Hacks . | . . . . . . . . Scanalyzer . | . . . . . . . . Garrison Access Hacks 2 | . . . . . . 2 . Unlock Access 1 | . . . . . . 1 . Coupler Status 1 | . . . . . . 1 . Unauthorized Hacks . | . . . . . . . . Terminals . | . . . . . . . . Fabricators . | . . . . . . . . Repair Stations . | . . . . . . . . Recycling Units . | . . . . . . . . Scanalyzers . | . . . . . . . . Garrison Access . | . . . . . . . . Data Cores Recovered . | . . . . . . . . Used . | . . . . . . . . Hacking Detections 8 | . . . . . . 8 . Full Trace Events 5 | . . . . . . 5 . Feedback Events 1 | . . . . . . 1 . Corruption 1 | . . . . . . 1 . Feedback Blocked . | . . . . . . . . Robot Schematics Acquired . | . . . . . . . . Robots Built . | . . . . . . . . Matter . | . . . . . . . . Time . | . . . . . . . . Total Robot Build Rating . | . . . . . . . . Part Schematics Acquired 1 | . . . . . . 1 . Parts Built . | . . . . . . . . Matter . | . . . . . . . . Time . | . . . . . . . . Total Part Build Rating . | . . . . . . . . Parts Repaired 2 | . . . . . . 2 . Time 48 | . . . . . . 48 . Parts Recycled . | . . . . . . . . Recycled Matter . | . . . . . . . . Retrieved Matter . | . . . . . . . . Retrieved Components . | . . . . . . . . Parts Scanalyzed . | . . . . . . . . Part Schematics Acquired . | . . . . . . . . Parts Damaged . | . . . . . . . . Bothacking | -11 -10 -10 -10 -9 -8 -8 -8 ------------ Run | Scr Mat Min Exi Min Mat Sto Gar Used RIF Installer . | . . . . . . . . Robots Hacked . | . . . . . . . . Non-combat . | . . . . . . . . Combat . | . . . . . . . . Robot Hacks Applied . | . . . . . . . . Relay Couplers Released . | . . . . . . . . Robots Rewired . | . . . . . . . . Allies Hacked . | . . . . . . . . Hacks Repelled . | . . . . . . . . Allies | -11 -10 -10 -10 -9 -8 -8 -8 -------- Run | Scr Mat Min Exi Min Mat Sto Gar Total Allies 10 | . . . . . . 10 . Largest Group 10 | . . . . . . 10 . Highest-Rated Group 173 | . . . . . . 173 . Highest-Rated Ally 29 | . . . . . . 29 . Total Orders . | . . . . . . . . Ally Attacks 75 | . . . . . . 75 . Total Damage 1003 | . . . . . . 1003 . Kills 11 | . . . . . . 11 . Allies Corrupted . | . . . . . . . . Allies Melted . | . . . . . . . . Intel | -11 -10 -10 -10 -9 -8 -8 -8 ------- Run | Scr Mat Min Exi Min Mat Sto Gar Robot Analysis Total . | . . . . . . . . Derelict Logs Recovered 1 | . . . . 1 . . . Drone Launches 4 | . . . . . . 4 . Drone Recoveries . | . . . . . . . . Exploration | -11 -10 -10 -10 -9 -8 -8 -8 ------------- Run | Scr Mat Min Exi Min Mat Sto Gar Turns Passed 4888 | 77 285 70 1191 851 182 2139 93 Spaces Moved 3308 | 50 166 43 739 447 94 1669 100 Core 11 | 11 . . . . . . . Treads 1827 | 39 166 43 739 447 94 299 . Legs . | . . . . . . . . Wheels 142 | . . . . . . 142 . Hover . | . . . . . . . . Flight 1328 | . . . . . . 1228 100 Fastest Speed 34 | 50 160 160 160 160 152 34 34 Average Speed 107 | 135 160 160 160 160 155 64 34 Slowest Speed 280 | 160 160 160 160 160 160 280 34 Overloaded Moves . | . . . . . . . . Propulsion Burnouts . | . . . . . . . . Robots Hopped 13 | . . . . . . 11 2 Cave-ins Triggered . | . . . . . . . . Exploration Rate (%) 45 | 3 37 18 93 89 7 96 18 Regions Visited 7 Branch Regions 4 Pre-discovered Areas 1 | . . . 1 . . . . Known Exits Taken 1 | . . . . . . 1 . Unknown Exits Taken 6 | 1 1 1 1 1 1 . . Scrap Searched 1 | . . . . 1 . . . Spaces Dug 20 | . . . 8 . . 12 . Terrain Destroyed 92 | . 22 . 8 . 40 22 . Melee . | . . . . . . . . Projectile 15 | . . . . . . 15 . AOE 77 | . 22 . 8 . 40 7 . Actions | -11 -10 -10 -10 -9 -8 -8 -8 --------- Run | Scr Mat Min Exi Min Mat Sto Gar Total 4301 | 57 174 44 745 510 114 2508 149 Wait 510 | . . 1 . . . 470 39 Move 3277 | 49 165 42 738 446 93 1648 96 Hop 11 | . . . . . . 9 2 Pick Up 20 | 1 . . 1 4 1 11 2 Fast Attach 77 | 5 1 . 1 5 2 63 . Attach 20 | 1 . . . . . 19 . Detach 15 | . 1 . . . . 14 . Swap 12 | . . 1 2 1 1 7 . Drop 73 | 1 . . 1 7 4 58 2 Fire 238 | . 6 . 2 46 13 163 8 Melee 9 | . . . . . . 9 . Ram . | . . . . . . . . Kick . | . . . . . . . . Crush 2 | . 1 . . 1 . . . Escape Stasis 36 | . . . . . . 36 . Rewire . | . . . . . . . . Trap . | . . . . . . . . Miscellaneous 1 | . . . . . . 1 . Route ------- -11/Scrapyard -10/Materials -10/Mines -10/Exiles (discovered 2 exits: *Min x2) -9/Mines (discovered 2 exits: *Mat x2) -8/Materials -8/Storage (discovered 3 exits: [*Fac] / [Rec] / Gar) -8/Garrison History --------- Turn | Location | Event 13 | -11/Scrapyard | Discovered new exit (range 14) 78 | -11/Scrapyard | Entered Materials 165 | -10/Materials | Discovered new exit (range 12) 168 | -10/Materials | Met 8R-AWN 317 | -10/Materials | Build established: Mutant 363 | -10/Materials | Entered Mines 365 | -10/Mines | Followed 8R-AWN into the Mines 368 | -10/Mines | Met a Derelict bent on vengeance 427 | -10/Mines | Discovered new exit (range 5) 433 | -10/Mines | Entered Exiles 483 | -10/Exiles | Welcomed by 8R-AWN 502 | -10/Exiles | Met EX-HEX 568 | -10/Exiles | Met EX-DEC 614 | -10/Exiles | Learned location of Zion (-7) 691 | -10/Exiles | Met EX-BIN 983 | -10/Exiles | Discovered new exit (range 10) 1104 | -10/Exiles | Visited The Gauntlet 1381 | -10/Exiles | Learned about 8R-AWN's background 1423 | -10/Exiles | Discovered new exit (range 15) 1624 | -10/Exiles | Entered Mines 1629 | -9/Mines | Found a hidden stash of uninstalled traps 1775 | -9/Mines | Learned Materials emergency access door positions 2298 | -9/Mines | Discovered new exit (range 8) 2390 | -9/Mines | Discovered new exit (range 15) 2393 | -9/Mines | Received a Rocket Launcher from a helpful Derelict 2475 | -9/Mines | Entered Materials 2475 | -8/Materials | Evolved 4 slots: Power x1, Utility x3 2604 | -8/Materials | Discovered new exit (range 3) 2657 | -8/Materials | Entered Storage 3005 | -8/Storage | Lost 3 parts (1p2u) 3151 | -8/Storage | Build established: Scavenger-Mutant 3794 | -8/Storage | Repaired Imp. Sensor Array 3819 | -8/Storage | Repaired Weight Redist. System 3942 | -8/Storage | Found Prototype Processor 3942 | -8/Storage | Identified Exp. Targeting Computer 4101 | -8/Storage | Discovered new exit (range 5) 4206 | -8/Storage | Assisted by bots powering up and referring to "LRC-V3" 4277 | -8/Storage | Discovered new exit (range 8) 4573 | -8/Storage | Build established: Mutant 4796 | -8/Storage | Identified exit to Garrison 4796 | -8/Storage | Entered Garrison 4804 | -8/Garrison | Triggered checkpoint 4818 | -8/Garrison | Core integrity fell below 50% 4882 | -8/Garrison | Triggered checkpoint 4889 | -8/Garrison | Self-destructed Last Messages --------------- 04796_ EXIT=UNLOCKED: GARRISON >>Couplers Installed: Relay Coupler [Swarmer] (28) Relay Coupler [NC] (18) Relay Coupler [NC] (20) 04796_ Connecting with Garrison Access... LOCATION=GARRISON GOAL=ESCAPE 04804_ Beams of light sweep through the air. An alarm sounds. 04807_ G-47 Trooper destroyed. 04851_ Dropped Imp. Heat Sink. 04852_ Dropped Adv. Sensor Array. 04865_ Lgt. Ion Engine destroyed. 04868_ Acquired Imp. Heat Sink. 04870_ Acquired Adv. Sensor Array. 04879_ Lgt. Ion Engine destroyed. 04881_ HO8Y4JNXFGUKC V5DU M49KX 04882_ Beams of light sweep through the air. An alarm sounds. 04882_ Cld. Plasma Cannon destroyed. Map ----- +----------------------------------------------------+ | ???????????????# #???????# #????????????????????? | | ??????????????##"##??????# #????????????????????? | | ??????????????#=%=#??????# #???????? #??????????? | | ??#############%==########++####### #??????????? | | ??# ! ^ #??????????? | | ??# ^ #??????????? | | ??# ^ #??????????? | | ??# #################### #######??????????????? | | ??# #??????????????????# #????????????????????? | | ??#####??????????????????# #????????????????????? | | ?????????????????????????# #????????????????????? | | ?????????????????????????# #????????????????????? | | ?????????????????????????# #????????????????????? | | ?????????????????????????# ########?????????????? | | ?????????????????????????# #?"""""#?????????????? | | ?????????????????????????# ### ###????????????? | | ?????????????????????????# #????????????? | | ?????????????????????????# #????????????? | | ?????????????????????????# ## ##????????????? | | ?????????????????????????# ## #?????????????? | | ?????????????????????????# ########?????????????? | | ?????????????????????????# #????????????????????? | | ?????????????????????????# #????????????????????? | | ?????????????????????????# ##????????????????????? | | ????????????????????????## ###???????????????????? | | ????????????????????????#@ !#???????????????????? | | ????????????????????????#! !#???????????????????? | | ????????????????????????##!!##???????????????????? | | ?????????????????????????####????????????????????? | | ?????????????????????????????????????????????????? | | ?????????????????????????????????????????????????? | | ?????????????????????????????????????????????????? | | ?????????????????????????????????????????????????? | | ?????????????????????????????????????????????????? | | ?????????????????????????????????????????????????? | | ?????????????????????????????????????????????????? | | ?????????????????????????????????????????????????? | | ?????????????????????????????????????????????????? | | ?????????????????????????????????????????????????? | | | | | | | | | | | | | | | | | | | | | | | +----------------------------------------------------+ Best States ------------- Heat Dissipation 45 Energy Generation 23 Energy Capacity 310 Matter Stores 400 Matter Capacity 400 Sight Range 20 Robot Scan Range 16 Terrain Scan Range 16 Terrain Scan Density 110 Jamming Range 8 Additional Mass Support 6 Evasion (%) 63 Targeting Accuracy 12 Recoil Reduction 2 Item Schematics ----------------- Hvy. Machine Gun | -8/Storage | Hacked Robot Schematics ------------------ None Fabricated ------------ Nothing Alien Tech Used ----------------- None Achievements -------------- Omniscient Cartographer Tourist Use The Force Challenges ------------ None Game ------ Seed GreatBeamDeconstructor Manual? 0 Play Time 01:01:42 Cumulative 18.4 hours Start 2020.05.11 @ 12:38:19 End 2020.05.11 @ 13:38:43 Sessions 1 Manual Loads 0 Difficulty Rogue Special Mode None Game No. 34 Rogue 34 Adventurer 0 Explorer 0 Win Type - Total 0 Types 0/0/0/0/0/0/0 Lore% 7 Gallery% 18 Achievement% 16 Wizard Run 0 Options --------- ASCII 0 Keyboard 0 Movement Numpad Keybinds 0 Fullscreen 1 Font 18/SmallcapsGlow Map View 76x50 Tactical HUD 1 Map Filters NONE Filters NONE Steam 1 RUN: f2c29be9-895c-42e9-99e4-936a59202108